lending/lending_fUSD_20240111
["ID","MTS","AMOUNT","RATE_DAILY","PERIOD"]
[311228278,1704987081654,-500.0,0.00044383,30]
[311228279,1704987081663,-233.15809005,0.00044383,30]
[311228280,1704987081674,-500.0,0.00044383,30]
[311228281,1704987081683,-345.5454561,0.00044383,30]
[311228282,1704987081705,-154.4545439,0.00044383,30]
[311228283,1704987081714,-494.73872067,0.00044383,30]
[311228284,1704987081726,-5.26127933,0.00044383,30]
[311228285,1704987081735,-500.0,0.00044383,30]
[311228286,1704987081744,-570.15,0.00044383,30]
[311228287,1704987081754,-60.98431757,0.00044383,30]
[311228288,1704987081766,-439.01568243,0.00044383,30]
[311228289,1704987081775,-500.0,0.00044383,30]
[311228290,1704987081784,-384.83562015,0.00044383,30]
[311228291,1704987081797,-115.16437985,0.00044383,30]
[311228292,1704987081806,-500.0,0.00044383,30]
[311228293,1704987081815,-500.0,0.00044383,30]
[311228294,1704987081825,-500.0,0.00044383,30]
[311228295,1704987081834,-500.0,0.00044383,30]
[311228296,1704987081844,-128.35452918,0.00044383,30]
[311228297,1704987082035,-371.64547082,0.00044383,30]
[311228298,1704987082045,-500.0,0.00044383,30]
[311228299,1704987082054,-33.98106154,0.00044383,30]
[311228300,1704987082067,-466.01893846,0.00044383,30]
[311228301,1704987082077,-35.21179436,0.00044383,30]
[311228302,1704987082094,-1706.15282945,0.00036601,4]
[311228303,1704987082104,-464.78820564,0.00044383,30]
[311228304,1704987082115,-500.0,0.00044383,30]
[311228305,1704987082124,-500.0,0.00044383,30]
[311228306,1704987082134,-500.0,0.00044383,30]
[311228307,1704987082143,-500.0,0.00044383,30]
[311228308,1704987082152,-500.0,0.00044383,30]
[311228309,1704987082162,-500.0,0.00044383,30]
[311228310,1704987082172,-500.0,0.00044383,30]
[311228311,1704987082182,-500.0,0.00044383,30]
[311228312,1704987082191,-500.0,0.00044383,30]
[311228313,1704987082200,-500.0,0.00044383,30]
[311228314,1704987082211,-500.0,0.00044383,30]
[311228315,1704987082221,-500.0,0.00044383,30]
[311228316,1704987082231,-500.0,0.00044383,30]
[311228317,1704987082241,-500.0,0.00044383,30]
[311228318,1704987082250,-500.0,0.00044383,30]
[311228319,1704987082260,-563.59046579,0.00044383,30]
[311228320,1704987082271,-500.0,0.00044383,30]
[311228321,1704987082282,-500.0,0.00044383,30]
[311228322,1704987082292,-500.0,0.00044383,30]
[311228323,1704987082301,-500.0,0.00044383,30]
[311228324,1704987082310,-500.0,0.00044383,30]
[311228325,1704987082320,-500.0,0.00044383,30]
[311228326,1704987082330,-500.0,0.00044383,30]
[311228327,1704987082339,-500.0,0.00044383,30]
[311228328,1704987082351,-500.0,0.00044383,30]
[311228329,1704987082361,-500.0,0.00044383,30]
[311228330,1704987082370,-500.0,0.00044383,30]
[311228331,1704987082380,-488.89,0.00044383,30]
[311228332,1704987082389,-500.0,0.00044383,30]
[311228333,1704987082398,-500.0,0.00044383,30]
[311228334,1704987082408,-500.0,0.00044383,30]
[311228335,1704987082417,-500.0,0.00044383,30]
[311228336,1704987082427,-500.0,0.00044383,30]
[311228337,1704987082437,-500.0,0.00044383,30]
[311228338,1704987082447,-500.0,0.00044383,30]
[311228339,1704987082457,-500.0,0.00044383,30]
[311228340,1704987082466,-500.0,0.00044383,30]
[311228341,1704987082476,-552.13,0.00044383,30]
[311228342,1704987082486,-500.0,0.00044383,30]
[311228343,1704987082495,-546.91,0.00044383,30]
[311228344,1704987082504,-500.0,0.00044383,30]
[311228345,1704987082514,-500.0,0.00044383,30]
[311228346,1704987082523,-500.0,0.00044383,30]
[311228347,1704987082532,-500.0,0.00044383,30]
[311228348,1704987082542,-500.0,0.00044383,30]
[311228349,1704987082551,-500.0,0.00044383,30]
[311228350,1704987082561,-500.0,0.00044383,30]
[311228351,1704987082571,-500.0,0.00044383,30]
[311228352,1704987082580,-500.0,0.00044383,30]
[311228353,1704987082590,-500.0,0.00044383,30]
[311228354,1704987082599,-267.32587163,0.00044383,30]
[311228355,1704987082609,-500.0,0.00044383,30]
[311228356,1704987082617,-500.0,0.00044383,30]
[311228357,1704987082627,-500.0,0.00044383,30]
[311228358,1704987082636,-500.0,0.00044383,30]
[311228359,1704987082645,-500.0,0.00044383,30]
[311228360,1704987082654,-515.26,0.00044383,30]
[311228361,1704987082664,-194.99695856,0.00044383,30]
[311228362,1704987082677,-500.0,0.00044383,30]
[311228363,1704987082686,-500.0,0.00044383,30]
[311228364,1704987082696,-500.0,0.00044383,30]
[311228365,1704987082705,-635.13,0.00044383,30]
[311228366,1704987082824,-500.0,0.00044383,30]
[311228367,1704987082834,-500.0,0.00044383,30]
[311228368,1704987082845,-500.0,0.00044383,30]
[311228369,1704987082854,-500.0,0.00044383,30]
[311228370,1704987082863,-500.0,0.00044383,30]
[311228371,1704987082873,-415.02,0.00044383,30]
[311228372,1704987082882,-500.0,0.00044383,30]
[311228373,1704987082892,-500.0,0.00044383,30]
[311228374,1704987082901,-500.0,0.00044383,30]
[311228375,1704987082911,-500.0,0.00044383,30]
[311228376,1704987082922,-500.0,0.00044383,30]
[311228377,1704987082931,-500.0,0.00044383,30]
[311228378,1704987082941,-500.0,0.00044383,30]
[311228379,1704987082950,-500.0,0.00044383,30]
[311228380,1704987082960,-500.0,0.00044383,30]
[311228381,1704987082969,-500.0,0.00044383,30]
[311228382,1704987082978,-334.94645302,0.00044383,30]
[311228383,1704987082994,-165.05354698,0.00044383,30]
[311228384,1704987083003,-214.99360238,0.00044383,30]
[311228385,1704987083012,-240.25563776,0.00044383,30]
[311228386,1704987083096,-259.74436224,0.00044383,30]
[311228387,1704987083105,-500.0,0.00044383,30]
[311228388,1704987083115,-500.0,0.00044383,30]
[311228389,1704987083124,-500.0,0.00044383,30]
[311228390,1704987083133,-500.0,0.00044383,30]
[311228391,1704987083144,-500.0,0.00044383,30]
[311228392,1704987083153,-500.0,0.00044383,30]
[311228393,1704987083162,-500.0,0.00044383,30]
[311228394,1704987083174,-507.4570595,0.00044383,30]
[311228395,1704987083183,-500.0,0.00044383,30]
[311228396,1704987083192,-500.0,0.00044383,30]
[311228397,1704987083201,-242.09921471,0.00044383,30]
[311228398,1704987083213,-257.90078529,0.00044383,30]
[311228399,1704987083223,-500.0,0.00044383,30]
[311228400,1704987083232,-500.0,0.00044383,30]
[311228401,1704987083241,-500.0,0.00044383,30]
[311228402,1704987083251,-500.0,0.00044383,30]
[311228403,1704987083260,-500.0,0.00044383,30]
[311228404,1704987083269,-500.0,0.00044383,30]
[311228405,1704987083279,-500.0,0.00044383,30]
[311228406,1704987083289,-500.0,0.00044383,30]
[311228407,1704987083298,-500.0,0.00044383,30]
[311228408,1704987083307,-500.0,0.00044383,30]
[311228409,1704987083317,-500.0,0.00044383,30]
[311228410,1704987083326,-558.48907189,0.00044383,30]
[311228411,1704987083336,-500.0,0.00044383,30]
[311228412,1704987083345,-500.0,0.00044383,30]
[311228413,1704987083354,-504.77637331,0.00044383,30]
[311228414,1704987083364,-373.95009133,0.00044383,30]
[311228415,1704987083374,-500.0,0.00044383,30]
[311228416,1704987083385,-500.0,0.00044383,30]
[311228417,1704987083394,-198.81640259,0.00044383,30]
[311228418,1704987083403,-643.94406705,0.00044383,30]
[311228419,1704987083413,-500.0,0.00044383,30]
[311228420,1704987083426,-595.13676823,0.00044383,30]
[311228421,1704987083436,-500.0,0.00044383,30]
[311228422,1704987083446,-500.0,0.00044383,30]
[311228423,1704987083456,-500.0,0.00044383,30]
[311228424,1704987083465,-500.0,0.00044383,30]
[311228425,1704987083474,-500.0,0.00044383,30]
[311228426,1704987083483,-500.0,0.00044383,30]
[311228427,1704987083492,-500.0,0.00044383,30]
[311228428,1704987083502,-500.0,0.00044383,30]
[311228429,1704987083512,-500.0,0.00044383,30]
[311228430,1704987083522,-500.0,0.00044383,30]
[311228431,1704987083531,-500.0,0.00044383,30]
[311228432,1704987083542,-500.0,0.00044383,30]
[311228433,1704987083551,-500.0,0.00044383,30]
[311228434,1704987083562,-500.0,0.00044383,30]
[311228435,1704987083572,-500.0,0.00044383,30]
[311228436,1704987083581,-503.43602922,0.00044383,30]
[311228437,1704987083590,-495.37575392,0.00044383,30]
[311228438,1704987083599,-500.0,0.00044383,30]
[311228439,1704987083609,-500.0,0.00044383,30]
[311228440,1704987083618,-302.49952743,0.00044383,30]
[311228441,1704987083627,-500.0,0.00044383,30]
[311228442,1704987083636,-514.93843339,0.00044383,30]
[311228443,1704987083646,-500.0,0.00044383,30]
[311228444,1704987083655,-500.0,0.00044383,30]
[311228445,1704987083664,-500.0,0.00044383,30]
[311228446,1704987083677,-500.0,0.00044383,30]
[311228447,1704987083686,-500.0,0.00044383,30]
[311228448,1704987083695,-500.0,0.00044383,30]
[311228449,1704987083704,-500.0,0.00044383,30]
[311228450,1704987083713,-528.45993714,0.00044383,30]
[311228451,1704987083722,-500.0,0.00044383,30]
[311228452,1704987083730,-645.51151814,0.00044383,30]
[311228453,1704987083740,-500.0,0.00044383,30]
[311228454,1704987083749,-500.0,0.00044383,30]
[311228455,1704987083759,-500.0,0.00044383,30]
[311228456,1704987083768,-500.0,0.00044383,30]
[311228457,1704987083777,-500.0,0.00044383,30]
[311228458,1704987083786,-250.0,0.00044383,30]
[311228459,1704987083796,-500.0,0.00044383,30]
[311228460,1704987083805,-500.0,0.00044383,30]
[311228461,1704987083814,-500.0,0.00044383,30]
[311228462,1704987083823,-500.0,0.00044383,30]
[311228463,1704987083833,-645.20087093,0.00044383,30]
[311228464,1704987083842,-500.0,0.00044383,30]
[311228465,1704987083852,-500.0,0.00044383,30]
[311228466,1704987083861,-500.0,0.00044383,30]
[311228467,1704987083871,-500.0,0.00044383,30]
[311228468,1704987083880,-500.0,0.00044383,30]
[311228469,1704987083889,-500.0,0.00044383,30]
[311228470,1704987083898,-510.4400827,0.00044383,30]
[311228471,1704987083907,-500.0,0.00044383,30]
[311228472,1704987083918,-157.23344515,0.00044383,30]
[311228473,1704987083927,-500.0,0.00044383,30]
[311228474,1704987083937,-500.0,0.00044383,30]
[311228475,1704987083947,-500.0,0.00044383,30]
[311228476,1704987083956,-500.0,0.00044383,30]
[311228477,1704987083966,-576.3520036,0.00044383,30]
[311228478,1704987083975,-500.0,0.00044383,30]
[311228479,1704987083985,-510.46656338,0.00044383,30]
[311228480,1704987083995,-500.0,0.00044383,30]
[311228481,1704987084005,-500.0,0.00044383,30]
[311228482,1704987084014,-500.0,0.00044383,30]
[311228483,1704987084025,-500.0,0.00044383,30]
[311228484,1704987084035,-500.0,0.00044383,30]
[311228485,1704987084046,-500.0,0.00044383,30]
[311228486,1704987084055,-500.0,0.00044383,30]
[311228487,1704987084068,-500.0,0.00044383,30]
[311228488,1704987084077,-202.42563479,0.00044383,30]
[311228489,1704987084086,-500.0,0.00044383,30]
[311228490,1704987084096,-500.0,0.00044383,30]
[311228491,1704987084105,-500.0,0.00044383,30]
[311228492,1704987084115,-500.0,0.00044383,30]
[311228493,1704987084124,-500.0,0.00044383,30]
[311228494,1704987084134,-500.0,0.00044383,30]
[311228495,1704987084143,-260.83628136,0.00044383,30]
[311228496,1704987084187,-239.16371864,0.00044383,30]
[311228497,1704987084197,-522.00464643,0.00044383,30]
[311228498,1704987084207,-210.24939253,0.00044383,30]
[311228500,1704987304176,-301.84442122,0.00024895,2]
[311228501,1704987304207,-155.0,0.00024896,2]
[311228502,1704987304240,-313.85189118,0.00024897,2]
[311228503,1704987304271,-523.20670564,0.00024897,2]
[311228504,1704987304303,-155.43381362,0.00024898,2]
[311228505,1704987304336,-301.84442122,0.00024993,2]
[311228506,1704987304355,-155.0,0.00024993,2]
[311228507,1704987304367,-313.85189118,0.00024993,2]
[311228508,1704987304378,-523.20670564,0.00024993,2]
[311228509,1704987304388,-155.43381362,0.00024993,2]
[311228510,1704987304403,-1167.28031526,0.00024993,2]
[311228511,1704987304413,-155.0,0.00024994,2]
[311228512,1704987304422,-300.0,0.00024998,2]
[311228513,1704987304431,-150.0,0.00024998,2]
[311228514,1704987304440,-329.04602142,0.00025,2]
[311228516,1704987378606,-765.63129887,0.00024998,2]
[311228517,1704987378639,-523.09304668,0.00024998,2]
[311228518,1704987378675,-155.0,0.00024999,2]
[311228519,1704987378708,-436.01925701,0.00024999,2]
[311228520,1704987388185,-500.0,0.00024999,2]
[311228521,1704987415384,1596.87726617,0.00019999,2]
[311228522,1704987431383,155.0,0.00022499,2]
[311228523,1704987439764,-401.67001773,0.00024249,2]
[311228524,1704987439793,-376.70044638,0.00024997,2]
[311228525,1704987439823,-3872.72583725,0.00024997,2]
[311228526,1704987439852,-697.80739728,0.00024998,2]
[311228527,1704987456929,345.0,0.00023198,2]
[311228528,1704987456960,15.26072372,0.00023198,2]
[311228529,1704987460772,-302.19260272,0.00024998,2]
[311228530,1704987460803,-240.51279488,0.00024999,2]
[311228531,1704987460881,-4513.57025685,0.00024999,2]
[311228533,1704987517798,-155.0,0.00024998,2]
[311228534,1704987517851,-621.21911154,0.00024999,2]
[311228535,1704987517898,-51.52469928,0.00025,2]
[311228536,1704987517942,-350.0,0.00025,3]
[311228537,1704987517982,-2458.04373184,0.00025806,2]
[311228538,1704987518094,-728.42491468,0.00025806,2]
[311228539,1704987541152,155.24300784,0.00022499,2]
[311228540,1704987552929,329.49626844,0.00023198,2]
[311228542,1704987595399,1596.87726617,0.00018558,2]
[311228543,1704987609450,-729.44024601,0.00023194,2]
[311228544,1704987609483,-419.33476208,0.00023194,2]
[311228545,1704987609515,-147.44998382,0.00023195,2]
[311228546,1704987609575,-7.55001618,0.00023195,2]
[311228547,1704987640131,-2472.30301271,0.00023193,2]
[311228548,1704987640153,-559.88627078,0.00023194,2]
[311228549,1704987640174,-155.0,0.00023195,2]
[311228550,1704987640193,-155.0,0.00023195,2]
[311228551,1704987640214,-155.0,0.00023196,2]
[311228552,1704987640235,-30.76445528,0.00023198,2]
[311228553,1704987658706,-401.67001773,0.00024249,2]
[311228554,1704987672440,-726.87106273,0.00024648,2]
[311228555,1704987729536,171.97,0.00022942,2]
[311228561,1704987986538,3206.73649208,0.00022942,2]
[311228562,1704987994830,348.76443064,0.00022942,2]
[311228563,1704987995941,847.20015076,0.00022942,2]
[311228564,1704987996429,500.0,0.00022942,2]
[311228565,1704987996949,587.2284006,0.00022942,2]
[311228566,1704987997441,599.75120427,0.00018354,2]
[311228567,1704988004541,1923.0614637,0.00022942,2]
[311228568,1704988014418,287.33411918,0.00022942,2]
[311228569,1704988014441,212.66588082,0.00022942,2]
[311228570,1704988031590,50499.59616864,0.00022942,2]
[311228571,1704988032423,500.0,0.00022942,2]
[311228572,1704988051747,50499.59616864,0.00022942,2]
[311228573,1704988077573,50499.59616864,0.00022942,2]
[311228574,1704988093577,50499.59616864,0.00022942,2]
[311228575,1704988111583,50499.59616864,0.00022942,2]
[311228576,1704988125012,-2776.59380219,0.00024508,2]
[311228577,1704988125044,-514.86735764,0.00024508,2]
[311228578,1704988125078,-1730.45103624,0.00024509,2]
[311228579,1704988125128,-3956.17560786,0.00024509,2]
[311228580,1704988131567,12074.09299336,0.00022942,2]
[311228581,1704988142990,-376.70044638,0.00024506,2]
[311228582,1704988143021,-559.88627078,0.00024506,2]
[311228583,1704988143052,-939.37733012,0.00024506,2]
[311228584,1704988143120,-2248.07190544,0.00024507,2]
[311228585,1704988155379,559.88627078,0.00021809,2]
[311228586,1704988159129,-841.95154834,0.00024505,2]
[311228587,1704988159153,-1000.0,0.00024505,2]
[311228588,1704988159174,-650.81684476,0.00024505,2]
[311228589,1704988159193,-376.70044638,0.00024505,2]
[311228590,1704988159214,-301.81545111,0.00024506,2]
[311228591,1704988159235,-195.27256295,0.00024506,2]
[311228592,1704988160213,-5076.0150931,0.00024506,2]
[311228593,1704988160236,-17388.6479069,0.00024506,2]
[311228594,1704988161153,-860.60892678,0.00024505,2]
[311228595,1704988161178,-326.58918329,0.00024505,2]
[311228596,1704988161198,-25554.99628129,0.00024506,2]
[311228597,1704988161220,-9417.00011885,0.00024507,2]
[311228598,1704988161242,-10510.83827202,0.00024507,2]
[311228599,1704988161263,-399.97788808,0.00024507,2]
[311228600,1704988161283,-524.45762012,0.00024509,2]
[311228601,1704988161304,-446.92630179,0.00024509,2]
[311228602,1704988161325,-3872.72583725,0.0002451,2]
[311228603,1704988161345,-1201.89770384,0.0002451,2]
[311228604,1704988161365,-384.09294812,0.00024511,2]
[311228605,1704988161386,-419.33476208,0.00024511,2]
[311228606,1704988161407,-527.17427812,0.00024511,2]
[311228607,1704988161436,-2142.52854897,0.00024512,2]
[311228608,1704988161459,-3186.46864652,0.00024512,2]
[311228609,1704988161482,-385.80374564,0.00024514,2]
[311228610,1704988161503,-3774.06203896,0.00024604,2]
[311228611,1704988161524,-2776.59380219,0.00024605,2]
[311228612,1704988161547,-516.75006379,0.00024605,2]
[311228613,1704988161568,-251.31865242,0.00024606,2]
[311228614,1704988164104,-757.88721717,0.00024504,2]
[311228615,1704988164125,-11499.85578283,0.00024606,2]
[311228689,1704988232122,-419.33476208,0.00024538,2]
[311228692,1704988232132,-650.81684476,0.00024539,2]
[311228695,1704988232143,-155.0,0.0002454,2]
[311228698,1704988232153,-565.16,0.00024541,2]
[311228701,1704988232162,-409.03688142,0.00024602,2]
[311228704,1704988232171,-268.19964474,0.00024603,2]
[311228707,1704988232180,-155.0,0.00024603,2]
[311228710,1704988232190,-1204.39705591,0.00024604,2]
[311228713,1704988232200,-3186.46864652,0.00024604,2]
[311228715,1704988232210,-9384.88690303,0.00024604,2]
[311228718,1704988232225,-10205.83856532,0.00024604,2]
[311228720,1704988232234,-262.96143468,0.00024605,2]
[311228722,1704988232248,-302.94431542,0.00024605,2]
[311228724,1704988232257,-587.89143701,0.00024605,2]
[311228726,1704988232267,-2139.93820814,0.00024605,2]
[311228728,1704988232277,-2377.32996876,0.00024605,2]
[311228730,1704988232286,-414.72882824,0.00024605,2]
[311228732,1704988232300,-406.21447504,0.00024605,2]
[311228733,1704988232310,-941.07163013,0.00024605,2]
[311228734,1704988232325,-58.92836987,0.00024605,2]
[311228735,1704988232335,-6068.29963013,0.00024605,2]
[311228736,1704988232350,-5586.97027754,0.00024605,2]
[311228737,1704988232359,-108.52972246,0.00024607,2]
[311228738,1704988232374,-41.47027754,0.00024607,2]
[311228739,1704988232384,-150.99,0.00024615,2]
[311228740,1704988232393,-5745.3,0.00024615,2]
[311228741,1704988232402,-499.99,0.00024616,2]
[311228742,1704988232412,-180.82762916,0.00024623,2]
[311228743,1704988232422,-393.15011915,0.000253,2]
[311228744,1704988232431,-383.72,0.000253,2]
[311228745,1704988232441,-588.17124154,0.00025564,2]
[311228746,1704988232450,-2965.1826,0.0002559,2]
[311228747,1704988232460,-156.66261506,0.00025692,2]
[311228748,1704988232469,-3853.32732948,0.00025692,2]
[311228749,1704988232479,-580.79318959,0.00025692,2]
[311228750,1704988232488,-1912.10611571,0.00025692,2]
[311228751,1704988232498,-417.33036051,0.00025692,2]
[311228752,1704988232508,-2315.6309702,0.00025692,2]
[311228753,1704988232517,-1254.29701492,0.00025692,2]
[311228754,1704988232527,-539.40137462,0.00025692,2]
[311228755,1704988232536,-257.49978831,0.00025692,2]
[311228756,1704988232549,-383.76625096,0.00025692,2]
[311228757,1704988232558,-178.21346097,0.00025692,2]
[311228758,1704988232569,-2017.69016121,0.00025692,2]
[311228759,1704988232579,-1325.35321689,0.00025692,2]
[311228760,1704988232589,-525.37777471,0.00025692,2]
[311228761,1704988232599,-760.68621098,0.00025692,2]
[311228762,1704988232610,-546.89815336,0.00025692,2]
[311228763,1704988232620,-5271.28765605,0.00025692,2]
[311228764,1704988232629,-5093.19074374,0.00025693,2]
[311228765,1704988232639,-24677.96484391,0.00025694,2]
[311228766,1704988232649,-155.46718389,0.00025698,2]
[311228767,1704988232659,-1549.87,0.00025808,2]
[311228768,1704988232669,-155.42378645,0.00026098,2]
[311228769,1704988232678,-155.0,0.00026098,2]
[311228770,1704988232688,-155.12103172,0.00026098,2]
[311228771,1704988232698,-155.30639888,0.00026098,2]
[311228772,1704988232708,-8210.26005515,0.00026214,2]
[311228773,1704988232722,-366.68641302,0.00026214,2]
[311228774,1704988232743,-950.08,0.00026214,2]
[311228775,1704988232755,-1928.1549999,0.00026214,2]
[311228776,1704988232769,-10953.97909999,0.00026214,2]
[311228777,1704988232783,-1490.83943194,0.00026214,2]
[311228778,1704988232798,-257.20249708,0.00026336,2]
[311228779,1704988232808,-155.46718378,0.00026436,2]
[311228780,1704988232817,-1266.09,0.00026498,2]
[311228781,1704988232826,-167.5,0.00026541,2]
[311228782,1704988232836,-153.84,0.0002664,2]
[311228783,1704988232845,-155.0,0.00026678,2]
[311228784,1704988232854,-167.5,0.00026681,2]
[311228785,1704988232863,-565.16,0.00026805,2]
[311228786,1704988232872,-167.5,0.0002682,2]
[311228787,1704988232882,-4961.81,0.00026834,2]
[311228788,1704988232891,-167.5,0.0002696,2]
[311228789,1704988232901,-744.83,0.00026999,2]
[311228790,1704988232911,-400.0,0.00027,3]
[311228791,1704988232920,-3988.37,0.00027,2]
[311228792,1704988232930,-415.4843753,0.00027,2]
[311228793,1704988232939,-210.0,0.00027068,2]
[311228794,1704988232948,-167.5,0.000271,2]
[311228795,1704988232958,-153.84,0.00027102,2]
[311228796,1704988232967,-159.61,0.00027164,2]
[311228797,1704988232977,-155.46718378,0.00027174,2]
[311228798,1704988232986,-167.5,0.00027239,2]
[311228799,1704988232996,-204.0,0.00027362,2]
[311228800,1704988233005,-205.0,0.00027362,2]
[311228801,1704988233014,-167.5,0.00027379,2]
[311228802,1704988233024,-167.5,0.00027519,2]
[311228803,1704988233034,-322.05,0.00027548,2]
[311228804,1704988233047,-155.17341309,0.00027548,2]
[311228805,1704988233057,-153.84,0.00027565,2]
[311228806,1704988233066,-3322.69,0.00027579,2]
[311228807,1704988233076,-167.5,0.00027659,2]
[311228808,1704988233085,-167.5,0.00027798,2]
[311228809,1704988233095,-620.71324438,0.00027838,2]
[311228810,1704988233105,-155.46718378,0.00027912,2]
[311228811,1704988233114,-167.5,0.00027938,2]
[311228812,1704988233124,-153.84,0.00028028,2]
[311228813,1704988233133,-157.29,0.00028039,2]
[311228814,1704988233144,-2705.0,0.00028061,2]
[311228815,1704988233153,-2000.0,0.00028078,2]
[311228816,1704988233163,-167.5,0.00028078,2]
[311228817,1704988233173,-1558.48,0.00028083,2]
[311228818,1704988233182,-163.19,0.00028083,2]
[311228819,1704988233192,-177.29,0.00028089,2]
[311228820,1704988233202,-250.0,0.00028094,2]
[311228821,1704988233212,-1959.67639607,0.00028128,2]
[311228822,1704988233222,-167.5,0.00028217,2]
[311228823,1704988233231,-167.5,0.00028357,2]
[311228824,1704988233241,-200.0,0.00028362,2]
[311228825,1704988233250,-15268.7890908,0.00028377,2]
[311228826,1704988233263,-14728.7409092,0.00028377,2]
[311228827,1704988233272,-200.0,0.00028428,2]
[311228828,1704988233282,-150.0,0.0002844,2]
[311228829,1704988233295,-164.8,0.00028462,2]
[311228830,1704988233305,-167.5,0.00028497,2]
[311228831,1704988233314,-2191.19,0.00028634,2]
[311228832,1704988233323,-167.5,0.00028636,2]
[311228833,1704988233332,-155.46718378,0.0002865,2]
[311228834,1704988233342,-167.5,0.00028776,2]
[311228835,1704988233351,-167.5,0.00028916,2]
[311228836,1704988233361,-257.20249708,0.00028919,2]
[311228837,1704988233370,-174.88,0.0002899,2]
[311228838,1704988233380,-1016.17907175,0.00028997,2]
[311228839,1704988233389,-481.9735083,0.00028998,2]
[311228840,1704988233400,-202.74732126,0.00028998,2]
[311228841,1704988233409,-236.91881621,0.00028998,2]
[311228842,1704988233419,-1180.70801675,0.00028998,2]
[311228843,1704988233429,-200.0,0.00028998,2]
[311228844,1704988233439,-767.58200322,0.00028999,2]
[311228845,1704988233455,-9852.18909556,0.00028999,2]
[311228846,1704988233464,-450.0,0.00029,3]
[311228847,1704988233474,-44143.94083948,0.00029,2]
[311228848,1704988233484,-167.5,0.00029056,2]
[311228849,1704988233496,-565.16,0.00029069,2]
[311228850,1704988233506,-167.5,0.00029195,2]
[311228851,1704988233516,-155.46718378,0.00029388,2]
[311228852,1704988233525,-310.0,0.000295,3]
[311228853,1704988233534,-159.77229605,0.0003,4]
[311228854,1704988233548,-155.0,0.0003,4]
[311228855,1704988233557,-155.0,0.0003,2]
[311228856,1704988233566,-581.6237216,0.0003,2]
[311228857,1704988233576,-461.6883313,0.0003,4]
[311228858,1704988233585,-6898.43991637,0.0003,4]
[311228859,1704988233595,-45100.92178424,0.0003,4]
[311228860,1704988233606,-18994.0891544,0.0003,4]
[311228861,1704988233615,-690.72186391,0.0003,2]
[311228862,1704988233625,-155.46718378,0.00030126,2]
[311228863,1704988233635,-153.84,0.00030137,2]
[311228864,1704988233644,-160.7375581,0.00030398,4]
[311228865,1704988233654,-2129.0,0.000304,2]
[311228866,1704988233663,-12507.0,0.000304,2]
[311228867,1704988233672,-675.39629014,0.00030526,5]
[311228868,1704988233682,-204.0,0.00030626,7]
[311228869,1704988233691,-155.46718378,0.00030864,2]
[311228870,1704988233701,-500.0,0.00031,3]
[311228871,1704988233710,-153.84,0.0003105,2]
[311228872,1704988233719,-164.8,0.00031139,2]
[311228873,1704988233728,-167.0,0.00031263,2]
[311228874,1704988233738,-565.16,0.00031332,2]
[311228875,1704988233747,-257.20249708,0.00031502,2]
[311228876,1704988233756,-150.0,0.00031577,2]
[311228877,1704988233765,-119107.0,0.00031578,2]
[311228878,1704988233774,-155.46718378,0.00031602,2]
[311228879,1704988233784,-150.44230726,0.00031798,2]
[311228880,1704988233796,-172.78776713,0.00031798,2]
[311228881,1704988233805,-166.32287272,0.00031798,2]
[311228882,1704988233815,-174.88,0.00031887,2]
[311228883,1704988233824,-174.88,0.00031887,2]
[311228884,1704988233833,-174.88,0.00031888,2]
[311228885,1704988233842,-7297.53078992,0.00031894,2]